bitfinex/quotes_ETHUSD_20251212
["timestamp","ask_amount","ask_price","bid_price","bid_amount"]
[1765559261725,0.003,3084.8,3084.7,4.18530633]
[1765559262021,0.003,3084.8,3084.7,5.25222023]
[1765559263217,0.003,3084.8,3084.7,4.30872023]
[1765559263418,0.003,3084.8,3084.7,5.25222023]
[1765559263828,0.3794,3084.8,3084.3,3.24218704]
[1765559264027,0.1719,3084.6,3084.3,3.24218704]
[1765559264821,0.1719,3084.6,3083.9,6.48529458]
[1765559265559,0.1912,3084.8,3083.9,6.48529458]
[1765559265560,0.003,3084.8,3084.5,8.84416954]
[1765559265722,0.1912,3086.5,3084.7,0.481]
[1765559265926,0.0672,3085.9,3084.7,0.481]
[1765559266163,0.0672,3085.9,3084.8,0.4625]
[1765559266937,3.30778886,3085.9,3084.9,6.48319232]
[1765559267256,3.30778886,3085.9,3084.9,3.24159616]
[1765559267257,6.54837772,3085.9,3084.9,3.24159616]
[1765559267442,0.1912,3085.7,3084.9,3.24159616]
[1765559267639,0.58047529,3085.8,3084.9,3.24159616]
[1765559267964,0.1952,3085.5,3084.7,3.24179009]
[1765559268466,0.1952,3085.5,3084.8,3.24170038]
[1765559268954,0.1952,3085.5,3084.3,3.2421792]
[1765559269263,0.004,3085.5,3084.4,0.97267887]
[1765559269466,0.004,3085.5,3084.5,0.03242016]
[1765559269669,0.004,3085.5,3084.5,0.4625]
[1765559269856,0.004,3085.5,3085.4,0.6792]
[1765559270252,0.004,3085.5,3085.4,1.1436]
[1765559270947,0.1912,3087.6,3085.6,0.98597929]
[1765559271145,0.1912,3087.6,3085.8,8.76867354]
[1765559271350,0.003,3087.8,3086.0,0.405504]
[1765559271747,0.003,3087.8,3086.1,0.6602]
[1765559272069,0.127,3087.8,3086.2,0.405504]
[1765559272263,0.127,3087.8,3086.1,0.6602]
[1765559272264,0.003,3087.8,3086.3,0.5326494]
[1765559272470,0.003,3087.8,3086.3,0.4644]
[1765559272849,0.001,3086.8,3086.3,0.4644]
[1765559273067,0.001,3086.8,3086.4,6.48004146]
[1765559273363,0.001,3086.8,3086.7,0.4774]
[1765559273569,0.001,3086.8,3086.7,0.9418]
[1765559275083,0.001,3086.8,3086.7,4.18150583]
[1765559276360,0.003,3087.8,3087.3,8.36316954]
[1765559276560,0.003,3087.8,3087.4,0.83631695]
[1765559276759,0.003,3087.8,3087.0,0.1958]
[1765559276974,0.003,3087.8,3087.1,6.47857212]
[1765559277171,0.003,3087.8,3087.1,9.71785818]
[1765559277372,0.003,3087.8,3087.7,0.4774]
[1765559277543,0.003,3087.8,3087.1,12.95714424]
[1765559277747,0.003,3087.8,3087.2,0.4644]
[1765559278691,0.003,3087.8,3087.1,6.47857212]
[1765559279079,0.003,3087.8,3087.7,3.7160566]
[1765559279454,0.2584,3089.1,3087.7,19.31560755]
[1765559279455,0.0672,3089.1,3087.7,19.31560755]
[1765559279654,0.0702,3089.4,3088.4,8.36316954]
[1765559279984,0.0702,3089.4,3087.9,8.36316954]
[1765559280180,0.0702,3089.4,3087.9,8.82756954]
[1765559280388,3.23588777,3090.4,3087.7,17.79333226]
[1765559280389,6.4708166,3090.8,3089.3,0.6732]
[1765559280601,6.4708166,3090.8,3088.0,2.56948664]
[1765559280602,3.628275,3090.7,3088.0,1.58350735]
[1765559280881,0.405504,3090.5,3088.5,0.1958]
[1765559281092,0.77467529,3090.6,3088.6,9.71313861]
[1765559281093,3.93973129,3090.3,3088.6,9.71313861]
[1765559281273,3.2354083,3090.8,3088.6,21.77842102]
[1765559281476,8.44945103,3090.7,3088.7,0.4644]
[1765559281675,9.196426,3090.5,3088.7,0.4644]
[1765559281894,0.527,3090.5,3088.9,8.36316954]
[1765559282193,1.0,3090.9,3089.4,8.36316954]
[1765559282194,1.527,3090.9,3089.4,8.36316954]
[1765559282367,1.0,3090.9,3090.8,0.1958]
[1765559282567,1.0,3090.9,3090.8,0.6602]
[1765559282886,1.0,3090.9,3090.3,0.4644]
[1765559283229,3.23394564,3092.2,3090.3,0.4644]
[1765559283230,0.124,3095.1,3092.9,0.1958]
[1765559283365,2.86615572,3097.0,3094.8,0.1958]
[1765559283366,0.02210819,3096.3,3094.8,0.1958]
[1765559283687,0.0682494,3094.7,3094.3,0.405504]
[1765559283899,0.0682494,3095.7,3094.4,8.54384323]
[1765559284102,0.0682494,3095.7,3094.0,0.1958]
[1765559284103,0.5411494,3095.3,3094.0,2.56821053]
[1765559284311,0.1876,3094.9,3093.6,0.1092]
[1765559284601,0.1876,3094.9,3093.7,0.405504]
[1765559284893,0.16605,3094.8,3093.7,0.4644]
[1765559285148,1.0,3095.0,3093.8,12.92908396]
[1765559285255,1.0,3095.0,3094.3,0.405504]
[1765559285457,0.1876,3095.9,3094.9,0.1092]
[1765559285811,0.02210819,3096.3,3095.8,0.1958]
[1765559286118,0.49500819,3096.3,3094.9,0.5736]
[1765559286262,0.02210819,3096.3,3095.3,8.54384323]
[1765559286461,0.02210819,3096.3,3095.4,0.405504]
[1765559286655,0.02210819,3096.3,3095.0,0.405504]
[1765559286885,0.02210819,3096.3,3095.2,0.405504]
[1765559287054,0.02210819,3096.3,3095.2,6.46161798]
[1765559287257,0.02210819,3096.3,3096.2,9.14514723]
[1765559287487,0.02210819,3096.3,3096.2,8.73964323]
[1765559287700,0.02210819,3096.3,3096.0,0.405504]
[1765559287995,0.02210819,3096.3,3096.2,9.52982252]
[1765559288175,1.0,3097.0,3096.3,0.98597929]
[1765559288489,1.0,3099.0,3097.0,0.405504]
[1765559288709,1.0,3099.0,3098.5,8.65304323]
[1765559288919,1.0,3099.0,3098.8,8.54384323]
[1765559289232,1.0,3099.0,3098.6,0.538]
[1765559289380,1.0,3099.0,3097.5,0.551]
[1765559289577,1.0,3099.0,3098.6,3.22724576]
[1765559289807,1.0,3099.0,3098.2,3.22761547]
[1765559289975,1.0,3099.0,3097.6,0.415504]
[1765559290305,1.0,3099.0,3098.6,3.22726392]
[1765559290480,1.0,3099.0,3098.7,0.99597929]
[1765559290677,0.4729,3098.9,3096.3,0.01]
[1765559290921,0.4729,3098.9,3096.2,3.22966886]
[1765559290922,0.4729,3098.9,3097.0,14.98426577]
[1765559291216,0.4729,3098.9,3096.7,3.22923516]
[1765559291217,0.4729,3098.9,3097.2,9.68616813]
[1765559291414,0.4729,3098.9,3097.2,3.22872271]
[1765559291601,0.4729,3098.9,3097.2,9.68616813]
[1765559291918,0.4729,3098.9,3097.3,0.58047529]
[1765559292119,0.58047529,3098.8,3097.2,3.22872271]
[1765559292330,0.4729,3098.7,3097.2,3.22872271]
[1765559292636,0.58047529,3098.5,3096.2,0.01]
[1765559292839,2.970632,3098.5,3096.3,8.60473934]
[1765559293054,6.45536116,3098.2,3096.3,8.60473934]
[1765559293217,6.45536116,3098.2,3096.4,3.2295569]
[1765559293418,0.6605,3098.1,3096.4,3.2295569]
[1765559293747,0.6605,3098.1,3096.4,6.4591138]
[1765559293924,0.4729,3098.0,3096.4,3.2295569]
[1765559294121,0.4729,3098.0,3096.4,6.4591138]
[1765559294360,0.4729,3098.5,3096.7,0.0682494]
[1765559294656,0.4729,3098.5,3096.8,0.542]
[1765559294945,0.4729,3098.5,3096.8,0.549]
[1765559295132,3.70030858,3098.5,3096.9,6.45807096]
[1765559295311,6.92771716,3098.5,3096.9,6.45807096]
[1765559295508,6.92771716,3098.5,3096.9,3.22903548]
[1765559295509,1.16567172,3098.4,3096.9,3.22903548]
[1765559295834,0.6605,3098.3,3096.9,9.68710644]
[1765559296035,0.6605,3098.3,3096.9,6.45807096]
[1765559296239,0.4729,3098.2,3096.9,6.45807096]
[1765559296651,0.4729,3098.2,3096.9,3.22903548]
[1765559296820,0.4729,3098.2,3096.2,8.52648994]
[1765559296821,0.1876,3097.0,3095.7,0.01]
[1765559297027,0.1876,3097.0,3096.2,3.22968106]
[1765559297222,0.1876,3097.0,3096.0,6.45994832]
[1765559297452,0.4729,3096.9,3096.0,6.45994832]
[1765559297753,0.4729,3096.9,3094.9,0.542]
[1765559297954,0.9309437,3096.8,3095.4,3.23052685]
[1765559298266,3.152077,3096.6,3094.3,8.52648994]
[1765559298458,0.4729,3096.7,3095.1,3.23083384]
[1765559298459,0.1876,3095.5,3095.1,3.23083384]
[1765559298625,0.1876,3095.5,3093.8,0.0682494]
[1765559298955,0.4729,3095.7,3095.1,3.23083632]
[1765559299121,0.4729,3095.7,3094.2,9.69555942]
[1765559299326,0.4729,3095.7,3094.3,0.96955594]
[1765559299753,0.1876,3096.0,3094.4,0.01]
[1765559299939,0.6605,3096.0,3094.3,1.07012282]
[1765559300129,0.6605,3096.0,3094.3,0.96955594]
[1765559300335,0.1876,3096.0,3094.4,0.01]
[1765559300544,0.4925,3096.5,3094.9,0.405504]
[1765559300744,0.4925,3096.5,3094.8,0.61278755]
[1765559300745,0.0202,3096.5,3094.8,0.61278755]
[1765559301054,3.22923535,3096.8,3094.9,0.1608]
[1765559301256,3.77105429,3096.9,3095.0,9.69305331]
[1765559301665,7.00010858,3096.9,3095.0,9.69305331]
[1765559301960,3.606818,3096.7,3095.0,9.69305331]
[1765559302166,3.606818,3096.7,3094.9,6.46221762]
[1765559302338,0.542,3096.6,3094.9,9.85413978]
[1765559302861,0.4925,3096.5,3094.9,9.85413978]
[1765559303067,0.4925,3096.5,3094.1,3.7749038]
[1765559303068,0.192,3095.0,3093.0,0.97050788]
[1765559303286,0.192,3095.0,3093.8,9.69681297]
[1765559303488,0.192,3095.0,3093.8,12.92908396]
[1765559303763,0.192,3095.6,3093.9,1.03097529]
[1765559303990,0.4925,3095.8,3094.4,0.405504]
[1765559304295,0.1874,3095.7,3094.4,0.98597929]
[1765559304649,0.1876,3097.0,3094.4,0.98597929]
[1765559304856,0.1874,3096.0,3094.8,0.0682494]
[1765559305154,0.1874,3096.0,3095.1,12.92365348]
[1765559305781,0.1874,3096.0,3095.1,9.69274011]
[1765559306004,0.4805,3095.9,3095.1,9.69274011]
[1765559306300,0.4805,3095.9,3094.3,3.23170616]
[1765559306301,0.4805,3095.9,3095.0,6.46201195]
[1765559306593,3.22914594,3096.8,3095.0,6.46201195]
[1765559306594,0.1876,3097.0,3095.0,12.92404749]
[1765559306761,0.1876,3097.0,3095.1,0.1608]
[1765559306762,0.4805,3096.5,3095.1,0.1608]
[1765559306953,0.4805,3096.5,3095.0,6.46201195]
[1765559307159,3.41833192,3095.1,3094.2,3.23185314]
[1765559307476,3.41833192,3095.1,3094.2,6.46370628]
[1765559307477,0.1874,3095.1,3094.2,6.46370628]
[1765559307647,0.82232204,3095.0,3094.2,3.23185314]
[1765559307853,0.4805,3095.0,3094.2,6.46370628]
[1765559308069,0.4805,3094.9,3094.2,6.46370628]
[1765559308283,0.4805,3094.9,3094.2,9.69555942]
[1765559308582,0.4805,3094.9,3094.2,6.46370628]
[1765559308881,0.4805,3094.9,3094.2,9.69555942]
[1765559309395,0.4805,3094.9,3093.8,9.69673271]
[1765559310981,0.4805,3094.9,3093.8,12.9290037]
[1765559311187,0.4805,3094.9,3093.8,14.54514757]
[1765559311391,0.4805,3094.9,3093.8,17.77741856]
[1765559312698,0.4805,3094.9,3093.8,16.16127469]
[1765559312886,0.4805,3094.9,3093.8,12.9290037]
[1765559313573,0.4805,3094.9,3093.8,9.69673271]
[1765559314889,0.4805,3094.9,3093.9,0.03232166]
[1765559315227,0.541,3094.8,3093.8,9.69673271]
[1765559315399,0.541,3094.8,3093.8,11.31288108]
[1765559315558,0.541,3094.8,3093.8,14.54515207]
[1765559315758,0.4805,3094.7,3093.8,9.69673271]
[1765559316086,2.117135,3094.6,3093.8,9.69673271]
[1765559316396,0.4805,3094.7,3093.8,9.69673271]
[1765559316397,0.4805,3094.7,3093.8,12.9290037]
[1765559316894,0.541,3094.6,3093.8,9.69673271]
[1765559317102,0.1874,3093.9,3092.9,0.002]
[1765559317290,14.752887,3093.7,3092.9,0.002]
[1765559317599,11.567922,3093.4,3091.2,12.9398544]
[1765559317803,10.659523,3093.2,3091.2,12.9398544]
[1765559317997,7.282332,3093.0,3091.2,12.9398544]
[1765559318298,0.58047529,3092.9,3091.2,6.46987512]
[1765559318498,0.58047529,3092.7,3091.2,6.46987512]
[1765559318701,0.541,3092.6,3091.2,9.70486476]
[1765559319002,0.541,3092.5,3091.2,9.70486476]
[1765559319174,1.0215,3092.4,3091.2,6.46987512]
[1765559319366,0.4805,3092.3,3091.2,6.46987512]
[1765559319568,0.4805,3092.3,3090.3,9.70779534]
[1765559319774,0.42552616,3092.2,3090.4,1.2943738]
[1765559319976,0.4805,3092.3,3090.4,1.7629738]
[1765559320168,0.4805,3092.2,3090.4,1.7629738]
[1765559320370,0.541,3092.1,3090.4,1.7629738]
[1765559320600,0.6679,3092.0,3090.4,1.7629738]
[1765559320919,0.6679,3092.0,3090.4,1.2943738]
[1765559321200,0.4805,3091.9,3090.5,1.42381009]
[1765559321609,0.4805,3091.9,3090.6,12.94247068]
[1765559321796,0.541,3091.8,3090.6,12.94247068]
[1765559322001,0.4805,3091.9,3090.6,12.94247068]
[1765559322186,0.541,3091.8,3090.6,12.94247068]
[1765559322519,0.541,3091.8,3090.6,9.70685301]
[1765559322675,0.1874,3090.7,3089.5,3.23673445]
[1765559322873,0.541,3090.6,3090.5,3.23568965]
[1765559323378,0.1874,3091.0,3090.5,6.47141202]
[1765559323601,0.541,3091.8,3090.5,0.6471412]
[1765559323984,0.4805,3091.7,3090.5,0.6471412]
[1765559325506,0.4805,3091.7,3090.6,12.94247068]
[1765559325714,0.4805,3091.7,3090.6,16.71908835]
[1765559325881,0.4805,3091.7,3090.6,16.17808835]
[1765559326199,0.4805,3091.7,3090.6,9.70685301]
[1765559326641,0.4805,3091.7,3090.6,6.47123534]
[1765559326911,0.541,3091.6,3090.6,9.70685301]
[1765559327297,0.4805,3091.5,3090.6,9.70685301]
[1765559328098,0.1874,3092.0,3090.6,6.47123534]
[1765559328290,0.4805,3091.9,3090.7,0.71183765]
[1765559329418,1.0215,3091.9,3090.7,0.71183765]
[1765559329621,0.4805,3091.9,3090.8,16.1770415]
[1765559329832,0.4805,3091.9,3090.8,12.9416332]
[1765559330033,0.4805,3091.9,3090.8,16.1770415]
[1765559330198,0.4954,3092.4,3090.9,2.88716332]
[1765559330522,0.4954,3092.4,3091.2,7.13975406]
[1765559331024,0.4954,3092.4,3091.3,0.1628]
[1765559331590,0.54,3092.7,3091.4,12.9391214]
[1765559331795,0.54,3092.7,3091.5,1.31019214]
[1765559332020,1.0354,3092.7,3091.5,1.31019214]
[1765559332509,0.4954,3092.6,3091.5,1.31019214]
[1765559333610,0.4954,3092.6,3091.6,9.70371327]
[1765559333926,0.54,3092.5,3091.6,9.70371327]
[1765559334431,0.4954,3092.4,3091.6,9.70371327]
[1765559334798,1.0344,3092.4,3091.6,9.70371327]
[1765559334994,0.4954,3092.4,3091.6,14.36315294]
[1765559335428,0.4954,3092.4,3091.6,11.12858185]
[1765559335624,0.4954,3092.4,3091.6,14.36315294]
[1765559336026,0.189,3091.7,3091.6,3.23457109]
[1765559336228,0.189,3091.7,3090.7,0.71183765]
[1765559336415,0.189,3091.7,3091.6,3.23457109]
[1765559336614,0.728,3091.7,3091.6,3.23457109]
[1765559336836,1.2234,3091.7,3091.6,3.23457109]
[1765559337133,0.4954,3091.7,3091.6,3.23457109]
[1765559337752,0.4954,3091.7,3090.8,3.23532147]
[1765559337753,0.189,3091.9,3091.1,0.1633]
[1765559338395,0.4954,3092.2,3091.1,0.1633]
[1765559338601,0.539,3092.5,3091.1,0.6482]
[1765559338925,0.4954,3092.6,3091.3,7.13975406]
[1765559339119,0.4954,3092.6,3091.4,0.77470035]
[1765559339330,1.0344,3093.0,3091.4,1.25960035]
[1765559339503,1.0344,3093.0,3091.5,0.5531494]
[1765559339698,0.539,3093.0,3091.6,16.17285545]
[1765559339921,0.4954,3092.9,3091.6,12.93828436]
[1765559340236,0.189,3091.7,3091.6,3.23457109]
[1765559340528,0.189,3091.7,3090.6,3.72045062]
[1765559340529,0.189,3091.7,3091.0,3.23510945]
[1765559340729,1.0334,3091.6,3090.5,3.23565961]
[1765559340932,0.4954,3091.6,3090.5,3.23566594]
[1765559341103,0.4954,3091.6,3090.8,3.23532283]
[1765559341104,1.0334,3091.5,3090.8,3.23532283]
[1765559341298,1.20404,3091.4,3090.8,6.47073113]
[1765559341550,0.4954,3091.3,3090.8,6.47073113]
[1765559341737,0.4954,3091.3,3089.3,0.002]
[1765559341738,8.052999,3091.2,3089.3,0.002]
[1765559341925,0.189,3089.9,3089.4,6.47374894]
[1765559342343,0.6844,3089.9,3089.4,6.47374894]
[1765559343017,0.6844,3089.9,3089.4,9.71062341]
[1765559343263,0.189,3089.9,3089.4,6.47374894]
[1765559343552,0.189,3089.9,3089.3,0.002]
[1765559343553,0.4954,3089.8,3089.3,3.23893924]
[1765559343758,1.0334,3089.8,3089.3,0.002]
[1765559343915,0.4954,3089.8,3089.3,0.002]
[1765559344123,1.0334,3089.8,3089.3,0.002]
[1765559344574,0.4954,3089.7,3089.3,0.002]
[1765559345466,0.94128572,3089.7,3089.3,0.002]
[1765559345667,2.255118,3089.6,3089.3,0.002]
[1765559345825,2.255118,3089.6,3088.0,0.1633]
[1765559345826,0.58047529,3089.4,3086.1,3.24028783]
[1765559346025,2.731706,3089.5,3088.0,3.23831858]
[1765559346026,0.189,3088.6,3088.0,3.23831858]
[1765559346245,0.189,3088.6,3088.0,6.47666054]
[1765559346529,0.189,3088.9,3088.0,9.7150025]
[1765559346735,0.727,3088.9,3088.0,9.7150025]
[1765559347668,0.189,3088.9,3088.1,0.1673]
[1765559347964,0.4954,3089.1,3088.3,9.71408217]
[1765559348174,0.4954,3089.1,3088.3,6.47605478]
[1765559348324,4.85107981,3089.1,3088.2,3.23810841]
[1765559348719,0.4954,3089.0,3088.0,0.002]
[1765559348969,4.371309,3088.9,3088.0,3.2403182]
[1765559349169,1.0246709,3088.8,3088.2,3.23806045]
[1765559349338,0.538,3088.8,3088.0,3.24031094]
[1765559349539,0.4954,3088.7,3088.0,0.002]
[1765559349729,3.73302502,3088.7,3088.0,0.002]
[1765559349934,0.58047529,3088.6,3088.0,0.002]
[1765559350264,0.4954,3088.5,3088.0,0.002]
[1765559351028,0.92675003,3088.5,3088.0,0.002]
[1765559351232,1.0324,3088.5,3088.0,0.002]
[1765559351541,0.189,3089.2,3088.0,0.002]
[1765559351733,1.0324,3089.1,3088.1,0.1673]
[1765559351934,0.4954,3089.1,3088.2,9.71439672]
[1765559352265,0.4954,3089.0,3088.2,10.70276639]
[1765559352443,1.0324,3089.0,3088.2,6.47626448]
[1765559352642,0.4954,3089.0,3088.2,6.47626448]
[1765559352831,1.0324,3088.9,3088.2,6.47626448]
[1765559353170,1.0324,3088.9,3088.2,3.23813224]
[1765559353367,0.4954,3088.8,3088.2,3.23813224]
[1765559353572,0.4954,3088.8,3088.2,6.47626448]
[1765559353757,0.4954,3088.8,3088.2,9.71439672]
[1765559353957,0.537,3088.9,3088.1,0.1673]
[1765559354165,0.537,3088.9,3088.1,0.98185621]
[1765559354462,0.537,3089.2,3088.4,7.97626209]
[1765559354972,0.537,3089.5,3088.4,7.97626209]
[1765559355149,0.537,3089.5,3088.5,0.486]
[1765559355343,0.537,3089.5,3088.6,0.84622621]
[1765559355952,0.537,3089.5,3088.7,12.9504322]
[1765559356267,0.189,3089.9,3088.7,12.9504322]
[1765559356435,0.58047529,3090.7,3089.1,7.14886714]
[1765559356641,0.537,3090.6,3089.1,7.14886714]
[1765559356844,0.4954,3090.9,3089.2,0.87568671]
[1765559357086,1.0324,3090.8,3089.6,7.14886714]
[1765559357454,1.0324,3090.8,3089.2,0.87568671]
[1765559357455,0.4954,3090.7,3089.2,0.87568671]
[1765559357844,0.4954,3090.7,3089.3,12.947917]
[1765559357845,0.537,3090.6,3089.3,12.947917]
[1765559358382,0.537,3090.5,3089.3,12.947917]
[1765559358577,0.537,3090.5,3089.4,1.43062037]
[1765559359970,0.4954,3090.7,3089.5,12.9470788]
[1765559360173,0.537,3090.5,3089.5,12.9470788]
[1765559360346,0.537,3090.5,3089.5,9.7103091]
[1765559360773,0.536,3090.5,3089.5,9.7103091]
[1765559360981,0.189,3091.0,3089.6,8.71806009]
[1765559361278,0.536,3090.9,3089.6,8.71806009]
[1765559361643,1.0347,3090.9,3089.6,8.71806009]
[1765559361843,1.0347,3090.9,3089.7,12.94624072]
[1765559362044,1.0347,3090.8,3089.7,9.70968054]
[1765559362291,1.0347,3090.8,3089.8,1.84277406]
[1765559362674,0.4987,3090.7,3089.8,1.84277406]
[1765559362853,0.4987,3090.7,3089.7,9.70968054]
[1765559363955,0.4987,3090.7,3089.7,12.94624072]
[1765559364359,0.536,3090.6,3089.7,9.70968054]
[1765559364562,0.189,3091.0,3089.7,12.94624072]
[1765559364765,0.536,3091.5,3090.6,7.14886714]
[1765559365011,0.198,3090.9,3089.8,2.12092008]
[1765559365163,0.198,3090.9,3089.7,9.70968054]
[1765559367401,1.0337,3090.6,3089.5,9.71024817]
[1765559367606,0.4987,3090.6,3089.5,9.71024817]
[1765559367780,0.535,3090.5,3089.5,9.71024817]
[1765559367970,1.0337,3090.5,3089.5,9.71024817]
[1765559368171,0.535,3090.5,3089.5,9.71024817]
[1765559368371,0.4987,3090.4,3089.5,9.71024817]
[1765559369405,0.4987,3090.4,3089.5,13.91804269]
[1765559369592,0.535,3090.3,3089.5,10.68127299]
[1765559370102,1.0337,3090.3,3089.5,6.47347847]
[1765559370290,0.4987,3090.2,3089.5,6.47347847]
[1765559370704,0.4987,3090.2,3089.5,9.71024817]
[1765559370894,0.535,3090.1,3089.5,9.71024817]
[1765559371809,1.0337,3090.1,3089.5,6.47347847]
[1765559372408,1.0337,3090.1,3089.3,12.947917]
[1765559372707,1.0337,3090.1,3089.3,15.29712341]
[1765559372890,1.0337,3090.1,3089.3,12.06014416]
[1765559373289,1.0337,3090.1,3089.3,15.29712341]
[1765559373703,0.535,3090.1,3089.3,15.29712341]
[1765559373900,0.534,3090.6,3090.0,0.4528]
[1765559374290,0.534,3090.6,3090.1,6.47228244]
[1765559374812,0.4769,3090.2,3089.3,2.34920641]
[1765559374986,0.3173,3090.1,3090.0,3.23620774]
[1765559375595,0.4987,3090.5,3090.0,6.47245369]
[1765559375909,0.4769,3090.1,3090.0,3.23620774]
[1765559377008,0.4769,3090.1,3089.4,12.94744941]
[1765559377603,0.534,3090.2,3089.4,12.94744941]
[1765559377813,0.534,3090.2,3089.4,15.34210876]
[1765559378006,0.534,3090.2,3089.4,12.10523429]
[1765559378207,0.534,3090.2,3089.4,15.34210876]
[1765559378410,0.534,3090.2,3089.4,9.71057494]
[1765559378602,1.0327,3090.2,3089.4,9.71057494]
[1765559378800,0.4987,3090.1,3089.4,9.71057494]
[1765559379001,0.4987,3090.1,3089.4,6.47370047]
[1765559379920,0.533,3090.0,3089.4,6.47370047]
[1765559380216,0.533,3090.0,3089.4,7.78454033]
[1765559380417,0.198,3089.9,3089.4,7.78454033]
[1765559380618,0.4769,3089.5,3088.3,7.96883922]
[1765559380820,0.3084,3089.4,3088.8,3.23743762]
[1765559380998,0.6732,3088.9,3088.2,6.47621896]
[1765559381203,0.3011,3088.7,3088.2,9.7143512]
[1765559382021,0.533,3088.8,3088.2,10.15890597]
[1765559382326,0.198,3088.9,3088.2,10.15890597]
[1765559382501,0.731,3088.9,3088.2,10.15890597]
[1765559383020,0.198,3088.9,3088.2,6.92077373]
[1765559383220,0.731,3088.9,3088.2,9.7143512]
[1765559383401,0.533,3088.8,3088.2,9.7143512]
[1765559384209,0.533,3088.8,3088.3,7.96883922]
[1765559384395,0.731,3088.9,3088.3,7.96883922]
[1765559385334,3.23628406,3090.0,3088.3,7.96883922]
[1765559385335,0.198,3090.2,3088.8,8.42163922]
[1765559385505,0.533,3090.5,3089.3,7.96883922]
[1765559385707,0.533,3090.5,3089.4,0.79688392]
[1765559385907,0.4987,3090.7,3089.8,8.33355555]
[1765559386205,0.198,3090.9,3089.8,8.78865555]
[1765559386206,0.533,3090.8,3089.8,8.78865555]
[1765559387547,0.001,3091.4,3090.3,8.33355555]
[1765559387852,0.533,3091.3,3090.3,8.33355555]
[1765559388014,0.533,3091.3,3090.4,0.1608]
[1765559388399,1.0317,3091.3,3090.4,0.1608]
[1765559388603,1.0317,3091.3,3090.3,8.33355555]
[1765559388820,0.4987,3091.2,3090.3,8.33355555]
[1765559389731,0.4987,3091.2,3090.4,6.47165414]
[1765559391002,0.1932,3090.5,3090.4,3.23582707]
[1765559391203,0.6899,3090.5,3090.4,3.23582707]
[1765559391397,0.6399,3090.5,3090.4,3.23582707]
[1765559391611,0.6399,3090.5,3090.0,3.23620219]
[1765559391813,0.6399,3090.5,3090.0,5.0404481]
[1765559392009,0.6399,3090.5,3090.0,1.80424591]
[1765559392238,0.6399,3090.5,3089.9,9.70905207]
[1765559392638,1.131,3090.5,3089.9,6.47270138]
[1765559392859,1.131,3090.5,3089.9,9.70905207]
[1765559393014,0.2922,3090.0,3089.8,3.23644173]
[1765559393215,0.6899,3089.9,3089.8,3.23645543]
[1765559393517,0.6899,3089.9,3089.1,9.71156646]
[1765559393744,0.297,3089.7,3089.1,10.69880311]
[1765559394964,0.297,3089.7,3089.1,6.47437764]
[1765559395126,0.531,3089.8,3089.1,9.71156646]
[1765559396658,0.531,3089.7,3089.1,9.71156646]
[1765559397355,0.4911,3090.2,3089.1,9.71156646]
[1765559397578,0.1432,3090.5,3089.2,0.4773]
[1765559397910,1.0221,3090.2,3089.3,11.56317995]
[1765559398766,1.0221,3090.2,3089.3,14.8001592]
[1765559399270,1.0221,3090.2,3089.3,11.56317995]
[1765559399961,1.0221,3090.2,3089.3,14.8001592]
[1765559400137,0.531,3090.1,3089.3,14.8001592]
[1765559400322,0.531,3090.1,3089.4,1.52774592]
[1765559400527,0.6899,3089.4,3089.3,3.23697925]
[1765559400837,0.1432,3090.5,3089.3,17.15099625]
[1765559401037,0.531,3090.6,3089.9,0.4888]
[1765559401257,0.531,3090.6,3089.3,9.71093775]
[1765559401560,0.1932,3090.8,3089.4,0.4773]
[1765559401772,1.2153,3090.8,3089.9,9.70905207]
[1765559402179,0.4911,3091.3,3090.0,0.4773]
[1765559402334,0.001,3091.4,3090.1,0.1054]
[1765559402335,0.1932,3090.9,3090.1,0.1054]
[1765559403242,0.4911,3090.8,3089.9,9.70905207]
[1765559403460,0.53,3090.7,3089.9,6.47270138]
[1765559403670,0.4911,3090.8,3089.9,6.47270138]
[1765559403869,0.1932,3090.9,3089.3,11.57054405]
[1765559403870,1.0211,3090.7,3089.8,9.70931759]
[1765559404073,0.1932,3089.9,3089.8,3.23640673]
[1765559404237,0.6899,3089.9,3089.7,3.23652962]
[1765559404742,0.4911,3090.6,3089.8,0.4888]
[1765559404943,0.53,3090.5,3089.8,0.4888]
[1765559405138,0.4911,3090.6,3089.8,0.4888]
[1765559405403,0.53,3090.5,3089.9,1.019845]
[1765559405670,0.4911,3090.8,3089.9,1.019845]
[1765559405870,0.53,3090.8,3090.0,10.18603785]
[1765559406174,0.53,3090.8,3090.1,0.1054]
[1765559406877,1.0211,3090.8,3090.0,6.4724919]
[1765559407383,0.4911,3090.7,3090.0,6.4724919]
[1765559407545,0.99410848,3090.7,3090.0,6.4724919]
[1765559407745,0.99410848,3090.7,3089.7,3.23652249]
[1765559407946,0.4911,3090.6,3089.7,3.23652249]
[1765559408442,0.4911,3090.6,3089.6,9.70999482]
[1765559408959,0.53,3090.5,3089.6,12.94665976]
[1765559409188,0.53,3090.5,3089.7,1.35293598]
[1765559409560,0.1932,3090.9,3089.7,9.68658946]
[1765559409755,0.4911,3091.3,3090.3,9.70779534]
[1765559410063,1.0211,3091.3,3090.3,9.70779534]
[1765559410800,1.0211,3091.3,3090.3,12.94372712]
[1765559410992,1.0211,3091.3,3090.3,14.15477586]
[1765559412262,0.4911,3091.2,3090.3,9.70779534]
[1765559412456,0.4911,3091.2,3090.3,6.47186356]
[1765559412988,0.6899,3090.4,3090.0,3.23617768]
[1765559413184,0.198,3089.8,3089.7,3.23653917]
[1765559413388,0.198,3089.8,3089.7,3.23656018]
[1765559413599,0.8823,3089.8,3089.7,3.23656018]
[1765559413961,0.1932,3090.4,3089.7,0.4888]
[1765559414166,0.53,3090.4,3089.7,0.4888]
[1765559414494,0.53,3090.7,3089.7,0.9661]